Workbook

Sheet Courbe de chauffe
C1: Remplir les cellules Blanches
A3: Temp consigne | B3: 21
A4: Station météo | B4: 54
A5: Temp régionale mini | B5: =LOOKUP(B4,liste!A2:A105,liste!C2:C105) -> -15
A6: DJU | B6: =LOOKUP(B4,liste!A2:A105,liste!B2:B105)+(232*(B3-18)) -> 3619
A7: Consigne départ PAC | B7: 58
A8: Consigne retour PAC | B8: 51 | M8: ²
A9: Delta T | B9: =B7-B8 -> 7
A10: Courbe | B10: 0.6 | C10: =IF($B3+$B10*($B$3-C$11)*C$12>=$B$8,$B$8,$B3+$B10*($B$3-C$11)*C$12) -> 19.764 | D10: 20.3856 | E10: 21 | F10: 21.6072 | G10: 22.2072 | H10: 22.8 | I10: 23.3856 | J10: 23.964 | K10: 24.5352 | L10: 25.0992 | M10: 25.656 | N10: 26.2056 | O10: 26.748 | P10: 27.2832 | Q10: 27.8112 | R10: 28.332 | S10: 28.8456 | T10: 29.352 | U10: 29.8512 | V10: 30.3432 | W10: 30.828 | X10: 31.3056 | Y10: 31.776 | Z10: 32.2392 | AA10: 32.6952 | AB10: 33.144 | AC10: 33.5856 | AD10: 34.02 | AE10: 34.4472 | AF10: 34.8672 | AG10: 35.28 | AH10: 35.6856 | AI10: 36.084 | AJ10: 36.4752 | AK10: 36.8592 | AL10: 37.236 | AM10: 37.6056 | AN10: 37.968 | AO10: 38.3232 | AP10: 38.6712 | AQ10: 39.012 | AR10: 39.3456 | AS10: 39.672 | AT10: 39.9912 | AU10: 40.3032 | AV10: 40.608
A11: Bivalence | B11: -7 | C11: =D11+1 -> 23 | D11: =B3+1 -> 22 | E11: =B3 -> 21 | F11: =E11-1 -> 20 | G11: 19 | H11: 18 | I11: 17 | J11: 16 | K11: 15 | L11: 14 | M11: 13 | N11: 12 | O11: 11 | P11: 10 | Q11: 9 | R11: 8 | S11: 7 | T11: =S11-1 -> 6 | U11: =T11-1 -> 5 | V11: 4 | W11: 3 | X11: 2 | Y11: 1 | Z11: 0 | AA11: -1 | AB11: -2 | AC11: -3 | AD11: -4 | AE11: -5 | AF11: -6 | AG11: -7 | AH11: -8 | AI11: -9 | AJ11: -10 | AK11: -11 | AL11: -12 | AM11: -13 | AN11: -14 | AO11: -15 | AP11: -16 | AQ11: -17 | AR11: -18 | AS11: -19 | AT11: -20 | AU11: -21 | AV11: -22
A12: Coefficient | B12: =B10% -> 0.006 | C12: =D12+$B12 -> 1.03 | D12: =E12+$B12 -> 1.024 | E12: =F12+$B12 -> 1.018 | F12: =G12+$B12 -> 1.012 | G12: =H12+$B12 -> 1.006 | H12: =I12+$B12 -> 1 | I12: =J12+$B12 -> 0.994 | J12: =K12+$B12 -> 0.988 | K12: =L12+$B12 -> 0.982 | L12: =M12+$B12 -> 0.976 | M12: =N12+$B12 -> 0.97 | N12: =O12+$B12 -> 0.964 | O12: =P12+$B12 -> 0.958 | P12: =Q12+$B12 -> 0.952 | Q12: =R12+$B12 -> 0.946 | R12: =S12+$B12 -> 0.94 | S12: =T12+$B12 -> 0.934 | T12: =U12+$B12 -> 0.928 | U12: =V12+$B12 -> 0.922 | V12: =W12+$B12 -> 0.916 | W12: =X12+$B12 -> 0.91 | X12: =Y12+$B12 -> 0.904 | Y12: =Z12+$B12 -> 0.898 | Z12: =AA12+$B12 -> 0.892 | AA12: =AB12+$B12 -> 0.886 | AB12: =AC12+$B12 -> 0.88 | AC12: =AD12+$B12 -> 0.874 | AD12: =AE12+$B12 -> 0.868 | AE12: =AF12+$B12 -> 0.862 | AF12: =AG12+$B12 -> 0.856 | AG12: =AH12+$B12 -> 0.85 | AH12: =AI12+$B12 -> 0.844 | AI12: =AJ12+$B12 -> 0.838 | AJ12: =AK12+$B12 -> 0.832 | AK12: =AL12+$B12 -> 0.826 | AL12: =AM12+$B12 -> 0.82 | AM12: =AN12+$B12 -> 0.814 | AN12: =AO12+$B12 -> 0.808 | AO12: =AP12+$B12 -> 0.802 | AP12: =AQ12+$B12 -> 0.796 | AQ12: =AR12+$B12 -> 0.79 | AR12: =AS12+$B12 -> 0.784 | AS12: =AT12+$B12 -> 0.778 | AT12: =AU12+$B12 -> 0.772 | AU12: =AV12+$B12 -> 0.766 | AV12: 0.76
A13: G=Maison | B13: 0.95
A14: COP à -7° | B14: 2.2

Sheet liste
A1: Département | B1: DJU 18° | C1: Temp base | D1: Ville
A2: 1 | B2: 2626 | C2: -10 | D2: 01 Amberieu
A3: 2 | B3: 2963 | C3: -7 | D3: 02 Eparcy
A4: 3 | B4: 2508 | C4: -8 | D4: 03 Vichy
A5: 4 | B5: 3323 | C5: -8 | D5: 04 Saint André Les Alpes
A6: 5 | B6: 4475 | C6: -10 | D6: Agnières En Devoluy
A7: 6 | B7: 1619 | C7: -8 | D7: Nice
A8: 7 | B8: 2314 | C8: -8
A9: 8 | B9: 3089 | C9: -10
A10: 9 | B10: 3206 | C10: -5
A11: 10 | B11: 2620 | C11: -10 | H11: http://www.therloss.fr/services.php
A12: 11 | B12: 1930 | C12: -4
A13: 12 | B13: 2703 | C13: -6
A14: 13 | B14: 1853 | C14: -5
A15: 14 | B15: 2517 | C15: -7 | H15: Calcul DJU base 18°
A16: 15 | B16: 3302 | C16: -8 | H16: DJU = 18 – Tmin + Tmax / 2
A17: 16 | B17: 2136 | C17: -5 | H17: Exemple pour deux jours (NJ)
A18: 17 | B18: 1846 | C18: -5 | H18: Le 10/10/2005 = Tmin 8° Tmax 12 d’où DJU = 18 – (8 + 12 / 2) = 8
A19: 18 | B19: 2487 | C19: -7 | H19: Le 11/10/2005 = Tmin 6° Tmax 10 d’où DJU = 18 – (6 + 10 / 2) = 8
A20: 19 | B20: 3200 | C20: -8 | H20: soit au total 16 DJU (pour NJ=2)
A21: 20 | B21: 3022 | C21: -2
A22: 21 | B22: 2868 | C22: -10 | H22: Correction pour une base 21°
A23: 22 | B23: 2445 | C23: -4 | H23: écart base T° = 21°-18°=3°
A24: 23 | B24: 3061 | C24: -8 | H24: DJU = DJU période + (NJ * écart base T°)
A25: 24 | B25: 2079 | C25: -5 | H25: DJU = 16 + ( 2 * 3) = 22
A26: 25 | B26: 3548 | C26: -12
A27: 26 | B27: 3389 | C27: -6
A28: 27 | B28: 2600 | C28: -7
A29: 28 | B29: 2586 | C29: -7
A30: 29 | B30: 2160 | C30: -4
A31: 30 | B31: 3928 | C31: -5
A32: 31 | B32: 2511 | C32: -5
A33: 32 | B33: 2150 | C33: -5
A34: 33 | B34: 2037 | C34: -4
A35: 34 | B35: 1825 | C35: -4
A36: 35 | B36: 2292 | C36: -5
A37: 36 | B37: 2403 | C37: -7
A38: 37 | B38: 2338 | C38: -7
A39: 38 | B39: 3700 | C39: -10
A40: 39 | B40: 2918 | C40: -10
A41: 40 | B41: 2036 | C41: -4
A42: 41 | B42: 2467 | C42: -7
A43: 42 | B43: 2636 | C43: -10
A44: 43 | B44: 2905 | C44: -8
A45: 44 | B45: 2199 | C45: -5
A46: 45 | B46: 2532 | C46: -7
A47: 46 | B47: 2132 | C47: -6
A48: 47 | B48: 2078 | C48: -5
A49: 48 | B49: 3500 | C49: -6
A50: 49 | B50: 2308 | C50: -7
A51: 50 | B51: 2228 | C51: -4
A52: 51 | B52: 2709 | C52: -10
A53: 52 | B53: 2954 | C53: -12
A54: 53 | B54: 2550 | C54: -7
A55: 54 | B55: 2923 | C55: -15 | D55: nancy
A56: 55 | B56: 2985 | C56: -12 | D56: verdun
A57: 56 | B57: 2163 | C57: -4
A58: 57 | B58: 2981 | C58: -15 | D58: Metz
A59: 58 | B59: 2858 | C59: -10
A60: 59 | B60: 2720 | C60: -9
A61: 60 | B61: 2680 | C61: -7
A62: 61 | B62: 2537 | C62: -7
A63: 62 | B63: 2644 | C63: -9
A64: 63 | B64: 3918 | C64: -8
A65: 64 | B65: 4083 | C65: -5
A66: 65 | B66: 5243 | C66: -5
A67: 66 | B67: 3931 | C67: -4
A68: 67 | B68: 3310 | C68: -15
A69: 68 | B69: 4036 | C69: -15
A70: 69 | B70: 3012 | C70: -10
A71: 70 | B71: 3101 | C71: -12
A72: 71 | B72: 2935 | C72: -10
A73: 72 | B73: 2428 | C73: -7
A74: 73 | B74: 4546 | C74: -10
A75: 74 | B75: 3869 | C75: -10
A76: 75 | B76: 2406 | C76: -5
A77: 76 | B77: 2569 | C77: -7
A78: 77 | B78: 2626 | C78: -7
A79: 78 | B79: 2659 | C79: -7
A80: 79 | B80: 2350 | C80: -7
A81: 80 | B81: 2607 | C81: -9
A82: 81 | B82: 2250 | C82: -5
A83: 82 | B83: 2150 | C83: -5
A84: 83 | B84: 2589 | C84: -2
A85: 84 | B85: 4277 | C85: -6
A86: 85 | B86: 2214 | C86: -5
A87: 86 | B87: 2363 | C87: -7
A88: 87 | B88: 2520 | C88: -8
A89: 88 | B89: 2875 | C89: -15
A90: 89 | B90: 2532 | C90: -10
A91: 90 | B91: 3939 | C91: -15
A92: 91 | B92: 2688 | C92: -7
A93: 92 | B93: 2500 | C93: -5
A94: 93 | B94: 2464 | C94: -5
A95: 94 | B95: 2510 | C95: -5
A96: 95 | B96: 2559 | C96: -7
